fUSD/lending_fUSD_20240113
["ID","MTS","AMOUNT","RATE_DAILY","PERIOD"]
[311487566,1705162267039,-708.04,0.00022562,2]
[311487567,1705162267049,-500.0,0.00022562,2]
[311487568,1705162267059,-500.0,0.00022562,2]
[311487569,1705162267069,-500.0,0.00022562,2]
[311487570,1705162267078,-500.0,0.00022562,2]
[311487571,1705162267087,-872.1,0.00022562,2]
[311487572,1705162267096,-500.0,0.00022564,2]
[311487573,1705162267105,-638.04,0.00022564,2]
[311487574,1705162267114,-500.0,0.00022564,2]
[311487575,1705162267123,-500.0,0.00022564,2]
[311487576,1705162267132,-500.0,0.00022564,2]
[311487577,1705162267141,-500.0,0.00022564,2]
[311487578,1705162267151,-2323.24,0.00022564,2]
[311487579,1705162267160,-500.0,0.00022564,2]
[311487580,1705162267169,-500.0,0.00022564,2]
[311487581,1705162267178,-500.0,0.00022564,2]
[311487582,1705162267187,-500.0,0.00022564,2]
[311487583,1705162267196,-3124.27,0.00022564,2]
[311487584,1705162267205,-500.0,0.00022564,2]
[311487585,1705162267215,-1025.77,0.00022564,2]
[311487586,1705162267228,-500.0,0.00022564,2]
[311487587,1705162267237,-606.73,0.00022564,2]
[311487588,1705162267246,-639.24,0.00022564,2]
[311487589,1705162267255,-550.81,0.00022564,2]
[311487590,1705162267264,-500.0,0.00022564,2]
[311487591,1705162267273,-500.0,0.00022564,2]
[311487592,1705162267283,-500.0,0.00022564,2]
[311487593,1705162267292,-500.0,0.00022564,2]
[311487594,1705162267302,-736.84,0.00022564,2]
[311487595,1705162267310,-500.0,0.00022564,2]
[311487596,1705162267319,-1121.92,0.00022564,2]
[311487597,1705162267327,-1188.33,0.00022564,2]
[311487598,1705162267336,-518.19,0.00022564,2]
[311487599,1705162267345,-500.0,0.00022564,2]
[311487600,1705162267353,-580.29,0.00022564,5]
[311487601,1705162267362,-1971.62,0.00022564,2]
[311487602,1705162267370,-2013.33,0.00022564,2]
[311487603,1705162267379,-577.15,0.00022564,2]
[311487604,1705162267387,-500.0,0.00022564,2]
[311487605,1705162267395,-500.0,0.00022564,2]
[311487606,1705162267404,-3212.89,0.00022564,2]
[311487607,1705162267412,-1322.45526597,0.00022581,2]
[311487608,1705162267420,-1781.76,0.00022594,2]
[311487609,1705162267428,-500.0,0.00022594,2]
[311487610,1705162267436,-1247.15,0.00022594,2]
[311487611,1705162267444,-500.0,0.00022594,2]
[311487612,1705162267452,-3091.82,0.00022594,2]
[311487613,1705162267461,-624.92,0.00022594,5]
[311487614,1705162267469,-500.0,0.00022594,2]
[311487615,1705162267482,-1028.19,0.00022594,2]
[311487616,1705162267490,-2403.79,0.00022594,2]
[311487617,1705162267498,-500.0,0.00022594,2]
[311487618,1705162267507,-500.0,0.00022594,2]
[311487619,1705162267806,-500.0,0.00022594,2]
[311487620,1705162267827,-500.0,0.00022594,2]
[311487621,1705162267836,-500.0,0.00022595,2]
[311487622,1705162267845,-500.0,0.00022595,2]
[311487623,1705162267854,-625.38,0.00022595,2]
[311487624,1705162267865,-500.0,0.00022595,2]
[311487625,1705162267874,-500.0,0.00022595,2]
[311487626,1705162267883,-500.0,0.00022595,2]
[311487627,1705162267892,-500.0,0.00022595,2]
[311487628,1705162267901,-500.0,0.00022595,2]
[311487629,1705162267910,-500.0,0.00022595,2]
[311487630,1705162267919,-500.0,0.00022595,2]
[311487631,1705162267927,-500.0,0.00022595,2]
[311487632,1705162267936,-500.0,0.00022595,2]
[311487633,1705162267945,-500.0,0.00022595,2]
[311487634,1705162267953,-500.0,0.00022595,2]
[311487635,1705162267962,-500.0,0.00022595,2]
[311487636,1705162267971,-500.0,0.00022595,2]
[311487637,1705162267983,-500.0,0.00022595,2]
[311487638,1705162267993,-500.0,0.00022595,2]
[311487639,1705162268004,-500.0,0.00022595,2]
[311487640,1705162268013,-500.0,0.00022595,2]
[311487641,1705162268022,-500.0,0.00022595,2]
[311487642,1705162268031,-500.0,0.00022595,2]
[311487643,1705162268040,-500.0,0.00022595,2]
[311487644,1705162268049,-500.0,0.00022595,2]
[311487645,1705162268058,-500.0,0.00022595,2]
[311487646,1705162268067,-500.0,0.00022595,2]
[311487647,1705162268076,-500.0,0.00022595,2]
[311487648,1705162268085,-500.0,0.00022595,2]
[311487649,1705162268094,-500.0,0.00022595,2]
[311487650,1705162268102,-500.0,0.00022595,2]
[311487651,1705162268111,-500.0,0.00022595,2]
[311487652,1705162268120,-500.0,0.00022595,2]
[311487653,1705162268129,-500.0,0.00022595,2]
[311487654,1705162268138,-500.0,0.00022595,2]
[311487655,1705162268147,-500.0,0.00022595,2]
[311487656,1705162268156,-506.83,0.00022595,2]
[311487657,1705162268165,-555.67,0.00022595,2]
[311487658,1705162268174,-511.67817951,0.00022595,2]
[311487659,1705162268183,-500.0,0.00022595,2]
[311487660,1705162268192,-500.0,0.00022595,2]
[311487661,1705162268201,-886.14,0.00022595,2]
[311487662,1705162268210,-500.0,0.00022595,2]
[311487663,1705162268219,-500.0,0.00022595,2]
[311487664,1705162268231,-696.62,0.00022595,2]
[311487665,1705162268240,-500.0,0.00022595,2]
[311487666,1705162268249,-500.0,0.00022595,2]
[311487667,1705162268257,-2468.81,0.00022595,2]
[311487668,1705162268265,-500.0,0.00022595,2]
[311487669,1705162268274,-500.0,0.00022595,2]
[311487670,1705162268283,-500.0,0.00022595,2]
[311487671,1705162268292,-500.0,0.00022595,2]
[311487672,1705162268301,-500.0,0.00022595,2]
[311487673,1705162268310,-632.9,0.00022595,2]
[311487674,1705162268319,-518.64,0.00022595,2]
[311487675,1705162268328,-539.53,0.00022595,2]
[311487676,1705162268336,-500.0,0.00022595,2]
[311487677,1705162268345,-500.0,0.00022595,2]
[311487678,1705162268354,-500.0,0.00022595,2]
[311487679,1705162268363,-500.0,0.00022595,2]
[311487680,1705162268372,-500.0,0.00022595,2]
[311487681,1705162268381,-500.0,0.00022595,2]
[311487682,1705162268390,-500.0,0.00022595,2]
[311487683,1705162268399,-500.0,0.00022595,2]
[311487684,1705162268408,-500.0,0.00022595,2]
[311487685,1705162268417,-500.0,0.00022595,2]
[311487686,1705162268426,-526.32,0.00022595,2]
[311487687,1705162268434,-638.04,0.00022595,2]
[311487688,1705162268443,-638.04,0.00022595,2]
[311487689,1705162268452,-638.04,0.00022595,2]
[311487690,1705162268465,-638.04,0.00022595,2]
[311487691,1705162268474,-500.0,0.00022595,2]
[311487692,1705162268486,-500.0,0.00022595,2]
[311487693,1705162268495,-500.0,0.00022595,2]
[311487694,1705162268504,-500.0,0.00022595,2]
[311487695,1705162268513,-500.0,0.00022595,2]
[311487696,1705162268522,-500.0,0.00022595,2]
[311487697,1705162268531,-500.0,0.00022595,2]
[311487698,1705162268541,-500.0,0.00022595,2]
[311487699,1705162268551,-500.0,0.00022595,2]
[311487700,1705162268560,-500.0,0.00022595,2]
[311487701,1705162268568,-500.0,0.00022595,2]
[311487702,1705162268577,-2323.24,0.00022595,2]
[311487703,1705162268586,-2323.24,0.00022595,2]
[311487704,1705162268595,-2323.24,0.00022595,2]
[311487705,1705162268604,-2323.24,0.00022595,2]
[311487706,1705162268613,-500.0,0.00022595,2]
[311487707,1705162268622,-500.0,0.00022595,2]
[311487708,1705162268631,-500.0,0.00022595,2]
[311487709,1705162268640,-500.0,0.00022595,2]
[311487710,1705162268649,-556.15,0.00022595,2]
[311487711,1705162268658,-500.0,0.00022595,2]
[311487712,1705162268667,-500.0,0.00022595,2]
[311487713,1705162268676,-500.0,0.00022595,2]
[311487714,1705162268685,-500.0,0.00022595,2]
[311487715,1705162268693,-500.0,0.00022595,2]
[311487716,1705162268702,-500.0,0.00022595,2]
[311487717,1705162268711,-500.0,0.00022595,2]
[311487718,1705162268720,-500.0,0.00022595,2]
[311487719,1705162268733,-500.0,0.00022595,2]
[311487720,1705162268742,-500.0,0.00022595,2]
[311487721,1705162268751,-500.0,0.00022595,2]
[311487722,1705162268760,-500.0,0.00022595,2]
[311487723,1705162268769,-500.0,0.00022595,2]
[311487724,1705162268779,-500.0,0.00022595,2]
[311487725,1705162268788,-500.0,0.00022595,2]
[311487726,1705162268797,-500.0,0.00022595,2]
[311487727,1705162268806,-500.0,0.00022595,2]
[311487728,1705162268817,-500.0,0.00022595,2]
[311487729,1705162268826,-500.0,0.00022595,2]
[311487730,1705162268835,-500.0,0.00022595,2]
[311487731,1705162268844,-606.73,0.00022595,2]
[311487732,1705162268853,-606.73,0.00022595,2]
[311487733,1705162268862,-606.73,0.00022595,2]
[311487734,1705162268871,-606.73,0.00022595,2]
[311487735,1705162268882,-500.0,0.00022595,2]
[311487736,1705162268891,-550.81,0.00022595,2]
[311487737,1705162268900,-550.81,0.00022595,2]
[311487738,1705162268909,-550.81,0.00022595,2]
[311487739,1705162268918,-550.81,0.00022595,2]
[311487740,1705162268927,-500.0,0.00022595,2]
[311487741,1705162268937,-500.0,0.00022595,2]
[311487742,1705162268946,-500.0,0.00022595,2]
[311487743,1705162268956,-500.0,0.00022595,2]
[311487744,1705162268966,-500.0,0.00022595,2]
[311487745,1705162268977,-500.0,0.00022595,2]
[311487746,1705162268987,-500.0,0.00022595,2]
[311487747,1705162268996,-500.0,0.00022595,2]
[311487748,1705162269005,-500.0,0.00022595,2]
[311487749,1705162269014,-500.0,0.00022595,2]
[311487750,1705162269024,-500.0,0.00022595,2]
[311487751,1705162269033,-500.0,0.00022595,2]
[311487752,1705162269042,-500.0,0.00022595,2]
[311487753,1705162269052,-500.0,0.00022595,2]
[311487754,1705162269061,-500.0,0.00022595,2]
[311487755,1705162269070,-500.0,0.00022595,2]
[311487756,1705162269080,-1121.92,0.00022595,2]
[311487757,1705162269089,-1121.92,0.00022595,2]
[311487758,1705162269099,-1121.92,0.00022595,2]
[311487759,1705162269108,-1121.92,0.00022595,2]
[311487760,1705162269117,-783.06,0.00022595,2]
[311487761,1705162269126,-500.0,0.00022595,2]
[311487762,1705162269135,-500.0,0.00022595,2]
[311487763,1705162269145,-500.0,0.00022595,2]
[311487764,1705162269154,-500.0,0.00022595,2]
[311487765,1705162269164,-500.0,0.00022596,2]
[311487766,1705162269173,-500.0,0.00022596,2]
[311487767,1705162269181,-500.0,0.00022596,2]
[311487768,1705162269190,-500.0,0.00022596,2]
[311487769,1705162269199,-445.24991072,0.00022596,2]
[311487770,1705162269208,-500.00466558,0.00022596,2]
[311487771,1705162269217,-500.0,0.00022596,2]
[311487772,1705162269226,-376.94189436,0.00022596,2]
[311487773,1705162269235,-500.0,0.00022596,2]
[311487774,1705162269244,-500.0,0.00022596,2]
[311487775,1705162269253,-500.0,0.00022596,2]
[311487776,1705162269261,-500.0,0.00022596,2]
[311487777,1705162269271,-500.0,0.00022596,2]
[311487778,1705162269280,-289.25104054,0.00022596,2]
[311487779,1705162269289,-500.0,0.00022596,2]
[311487780,1705162269297,-500.0,0.00022596,2]
[311487781,1705162269306,-500.0,0.00022596,2]
[311487782,1705162269315,-500.0,0.00022596,2]
[311487783,1705162269324,-1001.26,0.00022596,2]
[311487784,1705162269333,-500.0,0.00022596,2]
[311487785,1705162269341,-500.0,0.00022596,2]
[311487786,1705162269350,-500.0,0.00022596,2]
[311487787,1705162269359,-500.0,0.00022596,2]
[311487788,1705162269368,-500.0,0.00022596,2]
[311487789,1705162269377,-500.0,0.00022596,2]
[311487790,1705162269386,-500.0,0.00022596,2]
[311487791,1705162269394,-500.0,0.00022596,2]
[311487792,1705162269403,-500.0,0.00022596,2]
[311487793,1705162269412,-1025.95,0.00022596,2]
[311487794,1705162269421,-528.38453679,0.00022596,2]
[311487795,1705162269430,-1255.66,0.00022596,2]
[311487796,1705162269439,-500.0,0.00022596,2]
[311487797,1705162269447,-500.0,0.00022596,2]
[311487798,1705162269457,-500.0,0.00022596,2]
[311487799,1705162269469,-517.08101639,0.00022596,2]
[311487800,1705162269480,-576.49,0.00022596,2]
[311487801,1705162269489,-500.0,0.00022596,2]
[311487802,1705162269498,-885.46,0.00022596,2]
[311487803,1705162269506,-500.0,0.00022596,2]
[311487804,1705162269515,-500.0,0.00022596,2]
[311487805,1705162269524,-500.0,0.00022596,2]
[311487806,1705162269533,-773.02,0.00022596,2]
[311487807,1705162269541,-500.0,0.00022596,2]
[311487808,1705162269551,-464.85363886,0.00022596,2]
[311487809,1705162269561,-500.0,0.00022596,2]
[311487810,1705162269570,-500.0,0.00022596,2]
[311487811,1705162269579,-2652.93,0.00022596,2]
[311487812,1705162269588,-500.0,0.00022596,2]
[311487813,1705162269597,-766.7,0.00022596,2]
[311487814,1705162269607,-500.0,0.00022596,2]
[311487815,1705162269616,-3124.27,0.00022596,2]
[311487816,1705162269625,-500.0,0.00022596,2]
[311487817,1705162269634,-500.0,0.00022596,2]
[311487818,1705162269644,-3000.18,0.00022596,2]
[311487819,1705162269653,-500.0,0.00022596,2]
[311487820,1705162269662,-1025.77,0.00022596,2]
[311487821,1705162269671,-500.0,0.00022596,2]
[311487822,1705162269680,-500.0,0.00022596,2]
[311487823,1705162269689,-1737.56,0.00022596,2]
[311487824,1705162269699,-1317.05,0.00022596,2]
[311487825,1705162269708,-500.0,0.00022596,2]
[311487826,1705162269717,-877.53,0.00022596,2]
[311487827,1705162269728,-1037.05,0.00022596,2]
[311487828,1705162269737,-500.0,0.00022596,2]
[311487829,1705162269746,-639.24,0.00022596,2]
[311487830,1705162269756,-500.0,0.00022596,2]
[311487831,1705162269764,-502.7,0.00022596,2]
[311487832,1705162269773,-1299.53,0.00022596,2]
[311487833,1705162269782,-869.61,0.00022596,2]
[311487834,1705162269790,-1000.0,0.00022596,2]
[311487835,1705162269799,-500.0,0.00022596,2]
[311487836,1705162269808,-500.0,0.00022596,2]
[311487837,1705162269817,-797.38,0.00022596,2]
[311487838,1705162269825,-500.0,0.00022596,2]
[311487839,1705162269834,-3716.57,0.00022596,2]
[311487840,1705162269843,-500.0,0.00022596,2]
[311487841,1705162269852,-500.0,0.00022596,2]
[311487842,1705162269861,-500.0,0.00022596,2]
[311487843,1705162269870,-736.84,0.00022596,2]
[311487844,1705162269879,-500.0,0.00022596,2]
[311487845,1705162269888,-667.65,0.00022596,2]
[311487846,1705162269898,-771.89,0.00022596,2]
[311487847,1705162269906,-643.76,0.00022596,2]
[311487848,1705162269915,-500.0,0.00022596,2]
[311487849,1705162269924,-500.0,0.00022596,2]
[311487850,1705162269933,-1188.33,0.00022596,2]
[311487851,1705162269942,-500.0,0.00022596,2]
[311487852,1705162269951,-518.19,0.00022596,2]
[311487853,1705162269960,-500.0,0.00022596,2]
[311487854,1705162269969,-1006.71,0.00022596,2]
[311487855,1705162269980,-523.62063677,0.00022596,2]
[311487856,1705162269989,-369.02426136,0.00022596,2]
[311487857,1705162270001,-500.0,0.00022596,2]
[311487858,1705162270010,-500.0,0.00022596,2]
[311487859,1705162270019,-580.29,0.00022596,5]
[311487860,1705162270028,-500.0,0.00022596,2]
[311487861,1705162270040,-500.0,0.00022596,2]
[311487862,1705162270049,-500.0,0.00022596,2]
[311487863,1705162270058,-500.0,0.00022596,2]
[311487864,1705162270068,-805.09,0.00022596,2]
[311487865,1705162270077,-500.0,0.00022596,2]
[311487866,1705162270086,-6259.19,0.00022596,2]
[311487867,1705162270095,-1971.62,0.00022596,2]
[311487868,1705162270104,-500.0,0.00022596,2]
[311487869,1705162270113,-500.0,0.00022596,2]
[311487870,1705162270121,-500.0,0.00022596,2]
[311487871,1705162270130,-500.0,0.00022596,2]
[311487872,1705162270138,-534.39,0.00022596,2]
[311487873,1705162270147,-2013.33,0.00022596,2]
[311487874,1705162270156,-500.0,0.00022596,2]
[311487875,1705162270165,-500.0,0.00022596,2]
[311487876,1705162270174,-500.0,0.00022596,2]
[311487877,1705162270183,-741.54,0.00022596,2]
[311487878,1705162270192,-500.0,0.00022596,2]
[311487879,1705162270201,-500.0,0.00022596,2]
[311487880,1705162270210,-577.15,0.00022596,2]
[311487881,1705162270218,-500.0,0.00022596,2]
[311487882,1705162270229,-668.8,0.00022596,2]
[311487883,1705162270238,-1000.0,0.00022596,2]
[311487884,1705162270247,-500.0,0.00022596,2]
[311487885,1705162270256,-708.04,0.00022596,2]
[311487886,1705162270265,-500.0,0.00022596,2]
[311487887,1705162270274,-500.0,0.00022596,2]
[311487888,1705162270283,-602.63841351,0.00022596,2]
[311487889,1705162270292,-500.0,0.00022596,2]
[311487890,1705162270301,-500.0,0.00022596,2]
[311487891,1705162270310,-500.0,0.00022596,2]
[311487892,1705162270320,-500.0,0.00022596,2]
[311487893,1705162270329,-500.0,0.00022596,2]
[311487894,1705162270338,-500.0,0.00022596,2]
[311487895,1705162270346,-500.0,0.00022596,2]
[311487896,1705162270355,-500.0,0.00022596,2]
[311487897,1705162270364,-3212.89,0.00022596,2]
[311487898,1705162270373,-500.0,0.00022596,2]
[311487899,1705162270382,-872.1,0.00022596,2]
[311487900,1705162270391,-181.97919635,0.00022596,2]
[311487901,1705162270399,-250.0,0.00022597,2]
[311487902,1705162270408,-5000.0,0.00022597,2]
[311487903,1705162270417,-407.65,0.000226,2]
[311487904,1705162270425,-150.84,0.000226,2]
[311487905,1705162270434,-300.0,0.000226,2]
[311487906,1705162270442,-408.12,0.000226,2]
[311487907,1705162270451,-150.0,0.000226,2]
[311487908,1705162270461,-417.95,0.000226,2]
[311487909,1705162270470,-294.03,0.000226,2]
[311487910,1705162270483,-150.0,0.000226,2]
[311487911,1705162270491,-401.27,0.000226,2]
[311487912,1705162270500,-303.65,0.000226,2]
[311487913,1705162270509,-150.0,0.000226,2]
[311487914,1705162270517,-940.21,0.000226,2]
[311487915,1705162270526,-314.25,0.000226,2]
[311487916,1705162270534,-150.0,0.000226,2]
[311487917,1705162270543,-150.0,0.000226,2]
[311487918,1705162270552,-408.12,0.000226,2]
[311487919,1705162270562,-417.95,0.000226,2]
[311487920,1705162270571,-314.25,0.000226,2]
[311487921,1705162270580,-294.03,0.000226,2]
[311487922,1705162270589,-150.0,0.000226,2]
[311487923,1705162270599,-401.27,0.000226,2]
[311487924,1705162270608,-940.21,0.000226,2]
[311487925,1705162270617,-408.12,0.000226,2]
[311487926,1705162270626,-150.0,0.000226,2]
[311487927,1705162270634,-150.0,0.000226,2]
[311487928,1705162270643,-417.95,0.000226,2]
[311487929,1705162270652,-294.03,0.000226,2]
[311487930,1705162270661,-940.21,0.000226,2]
[311487931,1705162270670,-401.27,0.000226,2]
[311487932,1705162270679,-314.25,0.000226,2]
[311487933,1705162270688,-417.95,0.000226,2]
[311487934,1705162270697,-401.27,0.000226,2]
[311487935,1705162270706,-294.03,0.000226,2]
[311487936,1705162270715,-314.25,0.000226,2]
[311487937,1705162270724,-150.0,0.000226,2]
[311487938,1705162270735,-940.21,0.000226,2]
[311487939,1705162270744,-417.95,0.000226,2]
[311487940,1705162270753,-401.27,0.000226,2]
[311487941,1705162270762,-294.03,0.000226,2]
[311487942,1705162270771,-150.0,0.000226,2]
[311487943,1705162270781,-940.21,0.000226,2]
[311487944,1705162270790,-314.25,0.000226,2]
[311487945,1705162270798,-1322.45526597,0.00022621,2]
[311487946,1705162270807,-150.0,0.00022624,2]
[311487947,1705162270816,-314.00494018,0.00022646,2]
[311487948,1705162270827,-160.92,0.00022647,2]
[311487949,1705162270840,-200.0,0.00022659,2]
[311487950,1705162270853,-800.0,0.00022659,2]
[311487951,1705162270866,-1322.45526597,0.00022661,2]
[311487952,1705162270878,-588.17124154,0.00022679,2]
[311487953,1705162270889,-37929.8552,0.00022694,2]
[311487954,1705162270899,-500.0,0.00022694,2]
[311487955,1705162270910,-638.04,0.00022694,2]
[311487956,1705162270921,-500.0,0.00022694,2]
[311487957,1705162270933,-500.0,0.00022694,2]
[311487958,1705162270944,-2323.24,0.00022694,2]
[311487959,1705162270956,-500.0,0.00022694,2]
[311487960,1705162270968,-500.0,0.00022694,2]
[311487961,1705162270980,-500.0,0.00022694,2]
[311487962,1705162270992,-500.0,0.00022694,2]
[311487963,1705162271004,-500.0,0.00022694,2]
[311487964,1705162271013,-606.73,0.00022694,2]
[311487965,1705162271024,-550.81,0.00022694,2]
[311487966,1705162271035,-500.0,0.00022694,2]
[311487967,1705162271046,-1781.76,0.00022694,2]
[311487968,1705162271057,-500.0,0.00022694,2]
[311487969,1705162271069,-500.0,0.00022694,2]
[311487970,1705162271080,-500.0,0.00022694,2]
[311487971,1705162271091,-1121.92,0.00022694,2]
[311487972,1705162271103,-1247.15,0.00022694,2]
[311487973,1705162271115,-500.0,0.00022694,2]
[311487974,1705162271125,-3091.82,0.00022694,2]
[311487975,1705162271135,-624.92,0.00022694,5]
[311487976,1705162271147,-500.0,0.00022694,2]
[311487977,1705162271160,-1028.19,0.00022694,2]
[311487978,1705162271170,-2403.79,0.00022694,2]
[311487979,1705162271182,-500.0,0.00022694,2]
[311487980,1705162271194,-500.0,0.00022694,2]
[311487981,1705162271205,-318.67299466,0.00022694,2]
[311487982,1705162271216,-500.0,0.00022694,2]
[311487983,1705162271227,-500.0,0.00022695,2]
[311487984,1705162271240,-500.0,0.00022695,2]
[311487985,1705162271252,-500.0,0.00022695,2]
[311487986,1705162271264,-625.38,0.00022695,2]
[311487987,1705162271276,-500.0,0.00022695,2]
[311487988,1705162271287,-481.91559503,0.00022695,2]
[311487989,1705162271299,-513.68813534,0.00022695,2]
[311487990,1705162271311,-500.0,0.00022695,2]
[311487991,1705162271322,-500.0,0.00022695,2]
[311487992,1705162271332,-500.0,0.00022695,2]
[311487993,1705162271342,-514.4626582,0.00022695,2]
[311487994,1705162271351,-500.0,0.00022695,2]
[311487995,1705162271361,-500.0,0.00022695,2]
[311487996,1705162271372,-500.0,0.00022695,2]
[311487997,1705162271383,-500.0,0.00022695,2]
[311487998,1705162271394,-500.0,0.00022695,2]
[311487999,1705162271405,-500.0,0.00022695,2]
[311488000,1705162271416,-500.0,0.00022695,2]
[311488001,1705162271429,-500.0,0.00022695,2]
[311488002,1705162271440,-500.0,0.00022695,2]
[311488003,1705162271450,-500.0,0.00022695,2]
[311488004,1705162271460,-500.0,0.00022695,2]
[311488005,1705162271472,-500.0,0.00022695,2]
[311488006,1705162271484,-500.0,0.00022695,2]
[311488007,1705162271495,-500.0,0.00022695,2]
[311488008,1705162271507,-500.0,0.00022695,2]
[311488009,1705162271518,-500.0,0.00022695,2]
[311488010,1705162271528,-500.0,0.00022695,2]
[311488011,1705162271539,-500.0,0.00022695,2]
[311488012,1705162271549,-500.0,0.00022695,2]
[311488013,1705162271562,-500.0,0.00022695,2]
[311488014,1705162271573,-500.0,0.00022695,2]
[311488015,1705162271583,-500.0,0.00022695,2]
[311488016,1705162271594,-500.0,0.00022695,2]
[311488017,1705162271605,-500.0,0.00022695,2]
[311488018,1705162271615,-500.0,0.00022695,2]
[311488019,1705162271626,-500.0,0.00022695,2]
[311488020,1705162271636,-500.0,0.00022695,2]
[311488021,1705162271647,-506.83,0.00022695,2]
[311488022,1705162271658,-555.67,0.00022695,2]
[311488023,1705162271669,-500.0,0.00022695,2]
[311488024,1705162271679,-329.06432439,0.00022695,2]
[311488025,1705162271690,-500.0,0.00022695,2]
[311488026,1705162271700,-886.14,0.00022695,2]
[311488027,1705162271710,-500.0,0.00022695,2]
[311488028,1705162271721,-696.62,0.00022695,2]
[311488029,1705162271733,-500.0,0.00022695,2]
[311488030,1705162271743,-500.0,0.00022695,2]
[311488031,1705162271753,-500.0,0.00022695,2]
[311488032,1705162271764,-2468.81,0.00022695,2]
[311488033,1705162271775,-500.0,0.00022695,2]
[311488034,1705162271786,-500.0,0.00022695,2]
[311488035,1705162271796,-500.0,0.00022695,2]
[311488036,1705162271806,-500.0,0.00022695,2]
[311488037,1705162271817,-500.0,0.00022695,2]
[311488038,1705162271827,-500.0,0.00022695,2]
[311488039,1705162271838,-362.55,0.00022695,2]
[311488040,1705162271849,-500.0,0.00022695,2]
[311488041,1705162271860,-500.0,0.00022695,2]
[311488042,1705162271870,-500.0,0.00022695,2]
[311488043,1705162271881,-500.0,0.00022695,2]
[311488044,1705162271891,-632.9,0.00022695,2]
[311488045,1705162271902,-500.0,0.00022695,2]
[311488046,1705162271912,-518.64,0.00022695,2]
[311488047,1705162271923,-277.81070599,0.00022695,2]
[311488048,1705162271933,-1001.26,0.00022695,2]
[311488049,1705162271944,-539.53,0.00022695,2]
[311488050,1705162271954,-338.56281166,0.00022695,2]
[311488051,1705162271964,-500.0,0.00022695,2]
[311488052,1705162271975,-500.0,0.00022695,2]
[311488053,1705162271987,-500.0,0.00022695,2]
[311488054,1705162271998,-500.0,0.00022695,2]
[311488055,1705162272008,-500.0,0.00022695,2]
[311488056,1705162272019,-500.0,0.00022695,2]
[311488057,1705162272029,-500.0,0.00022695,2]
[311488058,1705162272040,-500.0,0.00022695,2]
[311488059,1705162272051,-500.0,0.00022695,2]
[311488060,1705162272062,-500.0,0.00022695,2]
[311488061,1705162272072,-500.0,0.00022695,2]
[311488062,1705162272083,-500.0,0.00022695,2]
[311488063,1705162272094,-500.0,0.00022695,2]
[311488064,1705162272105,-1025.95,0.00022695,2]
[311488065,1705162272115,-500.0,0.00022695,2]